Cogmind - Beta 11.1 @@@ ROGUE MODE // 2022.06.29 @ 14:37:04 Player: Cyurio Result: Destroyed by P-80 Master with Gamma Rifle Performance ------------- Evolutions (7) 3500 Regions Visited (10) 2000 Robots Destroyed (63) 315 Value Destroyed (1589) 1589 Prototype IDs (3) 60 Alien Tech Used (0) 0 Bonus (647) 647 TOTAL SCORE: 8111 Bonus ------- High Alert Combat Kills 155 Entered DSFs 500 Friendly Fire -8 Cogmind --------- Core Integrity 0/1300 Matter 39/300 Energy 90/100 System Corruption 6% Temperature Cool (0) Movement Core (50) Location -3/Armory Parts ------- > --- POWER (3) -------- (None) > --- PROPULSION (7) --- (None) > --- UTILITY (9) ------ Advanced Terrain Scan Processor Advanced Melee Analysis Suite Hacking Suite > --- WEAPON (2) ------- (None) > --- INVENTORY (5) ---- Light Antimatter Reactor Light Quantum Reactor Power Amplifier Advanced Melee Analysis Suite Advanced Melee Analysis Suite Peak State ------------ > --- POWER ------------ Graviton Reactor > --- PROPULSION ------- Xenon Bombardment Thruster Xenon Bombardment Thruster Nuclear Pulse Thruster Nuclear Pulse Thruster Biomechanical Wings Nuclear Pulse Array > --- UTILITY ---------- Large Storage Unit Weight Redist. System Improved Terrain Scanner Advanced Terrain Scan Processor Advanced Melee Analysis Suite Reaction Control System Reaction Control System Hacking Suite Hacking Suite > --- WEAPON ----------- Nanosword Force Lance > --- INVENTORY -------- Light Antimatter Reactor Armored Wheel Xenon Bombardment Thruster Power Amplifier Improved Signal Interpreter Advanced Melee Analysis Suite Advanced Melee Analysis Suite Advanced ECM Suite Phase Shifter System Shield Mini Grenade Launcher Force Lance [Rating: 93] Favorites ----------- Power Ion Engine Engine Ion Engine Power Core Light Fission Core Reactor Light Antimatter Reactor Propulsion Aluminum Leg Treads Biometal Heavy Treads Leg Aluminum Leg Wheel Armored Wheel Flight Unit Xenon Bombardment Thruster Utility Hacking Suite Device Weight Redist. System Storage Large Storage Unit Processor Signal Interpreter Hackware Hacking Suite Weapon Shotgun Energy Gun Small Laser Energy Cannon Enhanced Nova Cannon Ballistic Gun Shotgun Launcher Mini Grenade Launcher Special Weapon Mining Laser Slashing Weapon Nanosword Piercing Weapon Force Lance Build | -11 -10 -9 -8 -7 -7 -6 -5 -4 -3 -3 ------- Run | Scr Mat Mat Mat Fac DSF Fac Fac Fac Res Arm Slots Evolved 14 | . . 2 2 2 . 2 2 2 2 . Power 2 | . . . . . . 1 . . 1 . Propulsion 5 | . . 1 1 1 . . 1 . 1 . Utility 7 | . . 1 1 1 . 1 1 2 . . Weapon . | . . . . . . . . . . . Parts Attached 84 | . 10 15 10 1 8 11 5 5 5 14 Power 14 | . 1 1 1 1 . 4 . 3 1 2 Engine 6 | . 1 1 . 1 . 2 . 1 . . Core 3 | . . . 1 . . 2 . . . . Reactor 5 | . . . . . . . . 2 1 2 Propulsion 34 | . 3 7 3 . 5 5 1 1 2 7 Treads 2 | . . . . . . . . . . 2 Leg 9 | . 3 6 . . . . . . . . Wheel 1 | . . 1 . . . . . . . . Hover . | . . . . . . . . . . . Flight 22 | . . . 3 . 5 5 1 1 2 5 Utility 20 | . 2 2 4 . 2 2 4 1 2 1 Device 11 | . . 1 2 . 1 1 3 1 2 . Storage 4 | . 1 1 1 . 1 . . . . . Processor 3 | . 1 . . . . . 1 . . 1 Hackware 2 | . . . 1 . . 1 . . . . Protection . | . . . . . . . . . . . Artifact . | . . . . . . . . . . . Weapon 16 | . 4 5 2 . 1 . . . . 4 Energy Gun . | . . . . . . . . . . . Energy Cannon 1 | . . . . . . . . . . 1 Ballistic Gun 7 | . 4 3 . . . . . . . . Ballistic Cannon . | . . . . . . . . . . . Launcher 5 | . . 2 1 . 1 . . . . 1 Special Weapon 1 | . . . 1 . . . . . . . Impact Weapon . | . . . . . . . . . . . Slashing Weapon 1 | . . . . . . . . . . 1 Piercing Weapon 1 | . . . . . . . . . . 1 Special Melee Weapon . | . . . . . . . . . . . Unidentified Prototypes 3 | . . . . . . 1 . . . 2 Parts Lost 31 | . 2 1 1 . . 1 1 2 3 20 Power 6 | . 1 . 1 . . 1 . 2 1 . Propulsion 15 | . 1 . . . . . . . 1 13 Utility 7 | . . . . . . . 1 . 1 5 Weapon 3 | . . 1 . . . . . . . 2 Highest Loss Streak 12 | . 1 1 1 . . 1 1 2 3 12 To Critical Strikes . | . . . . . . . . . . . Average Slot Usage (%) 88 | . 97 97 83 . 72 89 94 86 76 47 Engine 7 | . 13 11 . . 7 2 5 2 . . Core 1 | . . . 7 . . 7 5 3 . . Leg 16 | . 27 31 . . . . . . . . Flight 12 | . . . 27 . 25 33 35 31 28 14 Device 9 | . . 11 9 . 15 13 12 21 18 6 Storage 9 | . 14 11 9 . 7 6 5 5 4 2 Processor 9 | . 12 11 9 . 7 6 9 5 4 8 Hackware 4 | . . . 8 . 7 12 11 10 9 7 Energy Gun 1 | . 6 . . . . . . . . . Ballistic Gun 11 | . 21 20 2 . . . . . . . Launcher 1 | . . . 3 . . 6 5 5 4 . Naked Turns . | . . . . . . . . . . . Heaviest Build 48 | 12 21 33 18 18 29 35 37 38 48 46 Greatest Support 150 | 20 20 33 18 18 36 36 42 42 48 150 Greatest Overweight (x) 4 | . 1 1 . . . . . . . 4 Average Overweight (x) . | . . . . . . . . . . . Largest Inventory Capacity 15 | . 10 15 15 10 15 15 15 15 15 15 Average Capacity 11 | . 8 12 10 10 10 15 15 15 15 9 Most Carried 15 | . 10 15 15 10 15 15 15 15 14 14 Average Carried 11 | . 8 11 10 9 10 14 14 13 13 8 Final Capacity 15 | 8 10 15 10 10 15 15 15 15 15 5 Final Carried 15 | 6 10 15 10 10 15 15 14 14 9 5 Class Distribution -------------------- 37% | Mutant 21% | Hacker-Sprinter 18% | Scavenger-Mutant 13% | Hacker-Scout 7% | Sprinter Dominant Class ---------------- Mutant | -10/Materials Scavenger-Mutant | -9/Materials Sprinter | -8/Materials Sprinter | -7/Factory Sprinter | -7/DSF Hacker-Sprinter | -6/Factory Hacker-Sprinter | -5/Factory Hacker-Scout | -4/Factory Hacker-Scout | -3/Research Hacker-Sprinter | -3/Armory Resources | -11 -10 -9 -8 -7 -7 -6 -5 -4 -3 -3 ----------- Run | Scr Mat Mat Mat Fac DSF Fac Fac Fac Res Arm Matter Collected 1338 | 200 52 686 68 . . 150 8 . 167 7 Remotely . | . . . . . . . . . . . Salvage Created 1585 | . 461 928 86 . . 22 43 . 45 . Parts 101 | . 27 51 5 . . 5 9 . 4 . Haulers Intercepted 3 | . . 3 . . . . . . . . Recyclers Shooed 1 | . . 1 . . . . . . . . Parts Field Recycled . | . . . . . . . . . . . Retrieved Matter . | . . . . . . . . . . . Parts Self-Destructed . | . . . . . . . . . . . Prevented . | . . . . . . . . . . . Kills | -11 -10 -9 -8 -7 -7 -6 -5 -4 -3 -3 ------- Run | Scr Mat Mat Mat Fac DSF Fac Fac Fac Res Arm Combat Hostiles Destroyed 50 | . 16 21 3 . . 3 3 . 4 . Guns 27 | . 13 14 . . . . . . . . AOE 23 | . 3 7 3 . . 3 3 . 4 . Classes Destroyed 9 | . 5 3 . . . . 1 . . . Worker 2 | . 1 1 . . . . . . . . Builder 2 | . 1 1 . . . . . . . . Tunneler 1 | . . . . . . . 1 . . . Hauler 3 | . . 3 . . . . . . . . Recycler 2 | . . 1 1 . . . . . . . Watcher 3 | . 1 1 . . . . . . 1 . Swarmer 26 | . 6 7 3 . . 3 3 . 4 . Grunt 17 | . 10 7 . . . . . . . . Sentry 7 | . . 7 . . . . . . . . Best Kill Streak 7 | . 6 7 4 . . 3 4 . 5 . Combat Bots Only 6 | . 6 4 3 . . 3 3 . 4 . Max Kills in Single Turn 5 | . 5 4 3 . . 2 2 . 2 . Gunslinging . | . . . . . . . . . . . Exploded 3 | . 3 3 2 . . 2 2 . 1 . Melee . | . . . . . . . . . . . Uniques/NPCs Destroyed . | . . . . . . . . . . . Combat | -11 -10 -9 -8 -7 -7 -6 -5 -4 -3 -3 -------- Run | Scr Mat Mat Mat Fac DSF Fac Fac Fac Res Arm Damage Taken 5547 | . 622 717 79 . 16 257 83 100 228 3445 Core 1816 | . 200 141 16 . . 107 15 25 47 1265 Absorbed by Shields . | . . . . . . . . . . . Core Remaining (%) 82 | 100 20 64 97 . 100 87 98 97 . . Volleys Fired 117 | . 43 51 8 . . 2 3 . 6 4 Largest 2 | . 2 2 1 . . 1 1 . 1 1 Hottest 120 | . 60 46 100 . . 30 30 . 30 120 Shots Fired 202 | . 86 93 8 . . 2 3 . 6 4 Gun 175 | . 86 89 . . . . . . . . Cannon 1 | . . . . . . . . . . 1 Launcher 20 | . . 4 2 . . 2 3 . 6 3 Special 6 | . . . 6 . . . . . . . Kinetic 141 | . 52 89 . . . . . . . . Thermal 41 | . 34 . 6 . . . . . . 1 Explosive 20 | . . 4 2 . . 2 3 . 6 3 Electromagnetic . | . . . . . . . . . . . Robot Hit Streak 11 | . 8 11 . . . . 1 . 2 . Robot Miss Streak 4 | . 3 3 2 . . . 3 . 4 2 Penetration Max . | . . . . . . . . . . . Secondary Targets 1 | . 1 . . . . . . . . . Max Gunslinging Chain 1 | . 1 . . . . . . . . . Shots Hit Robots 142 | . 63 76 . . . . 1 . 2 . Core Hits 113 | . 33 51 4 . . 5 9 . 11 . Critical Kills . | . . . . . . . . . . . Critical Parts Destroyed 2 | . 1 1 . . . . . . . . Critical Strikes 2 | . 1 1 . . . . . . . . Destroy 2 | . 1 1 . . . . . . . . Melee Attacks . | . . . . . . . . . . . Impact . | . . . . . . . . . . . Slashing . | . . . . . . . . . . . Piercing . | . . . . . . . . . . . Sneak Attacks . | . . . . . . . . . . . Combat Hostiles . | . . . . . . . . . . . Follow-up Attacks . | . . . . . . . . . . . Damage Inflicted 4228 | . 1296 1608 192 . . 177 272 . 632 51 Guns 1911 | . 689 1222 . . . . . . . . Cannons 42 | . . . . . . . . . . 42 Explosions 2254 | . 600 381 192 . . 177 272 . 632 . Melee . | . . . . . . . . . . . Ramming 21 | . 7 5 . . . . . . . 9 Kinetic 1609 | . 387 1222 . . . . . . . . Thermal 344 | . 302 . . . . . . . . 42 Explosive 2254 | . 600 381 192 . . 177 272 . 632 . Electromagnetic . | . . . . . . . . . . . Impact . | . . . . . . . . . . . Slashing . | . . . . . . . . . . . Piercing . | . . . . . . . . . . . Highest Corruption 6 | . . . . . . . . . 1 6 Average Corruption 1 | . . . . . . . . . 1 1 Corruption Purged . | . . . . . . . . . . . Corruption Blocked . | . . . . . . . . . . . Overload Shots . | . . . . . . . . . . . Overflow Damage 75 | . 51 2 . . . . 6 . 16 . Projectiles . | . . . . . . . . . . . Explosions 75 | . 51 2 . . . . 6 . 16 . Melee . | . . . . . . . . . . . Knockbacks . | . . . . . . . . . . . Impact . | . . . . . . . . . . . Kinetic . | . . . . . . . . . . . Secondary . | . . . . . . . . . . . Self-Inflicted Damage 132 | . . 37 . . . . . . . 95 Shots 5 | . . 2 . . . . . . . 3 Rammed 7 | . . . . . . . . . . 7 Targets Rammed 11 | . 3 1 . . . . . . . 7 Kicked 4 | . 3 1 . . . . . . . . Crushed . | . . . . . . . . . . . Highest Temperature 238 | . 118 1 35 . . 19 238 23 224 28 Average Temperature 49 | . 52 1 15 . . 4 124 10 104 7 Received Heat Transfer 831 | . 303 279 27 . . 78 9 9 18 108 Siege Activations . | . . . . . . . . . . . Robots Corrupted . | . . . . . . . . . . . Combat Hostiles . | . . . . . . . . . . . Parts Fried . | . . . . . . . . . . . Impact Corruptions . | . . . . . . . . . . . Robots Melted . | . . . . . . . . . . . Combat Hostiles . | . . . . . . . . . . . Parts Melted 2 | . 2 . . . . . . . . . Heat Transferred 712 | . 675 . . . . . . . . 37 Parts Sabotaged . | . . . . . . . . . . . Parts Stolen . | . . . . . . . . . . . Parts Stripped . | . . . . . . . . . . . Power Chain Reactions . | . . . . . . . . . . . Missiles Intercepted . | . . . . . . . . . . . Alert | -11 -10 -9 -8 -7 -7 -6 -5 -4 -3 -3 ------- Run | Scr Mat Mat Mat Fac DSF Fac Fac Fac Res Arm Peak Influence 883 | . 338 883 558 253 192 502 316 159 272 664 Initial 343 | . . 142 343 249 177 100 91 154 78 132 Average 312 | . 169 531 401 249 179 274 169 152 146 359 Maximum Alert Level 3 | . 1 3 2 1 . 2 1 . 1 2 Low Security (%) 38 | . 43 10 . . 100 40 65 100 81 30 Level 1 34 | . 56 21 66 100 . 40 34 . 18 34 Level 2 16 | . . 33 33 . . 18 . . . 34 Level 3 10 | . . 34 . . . . . . . . Level 4 . | . . . . . . . . . . . Level 5 . | . . . . . . . . . . . High Security . | . . . . . . . . . . . Max Security . | . . . . . . . . . . . Squads Dispatched 19 | . 4 . 2 . 1 5 1 . 1 5 Investigation 9 | . 2 . . . . 5 . . . 2 Extermination 1 | . . . . . . . . . 1 . Reinforcement 9 | . 2 . 2 . 1 . 1 . . 3 Assault . | . . . . . . . . . . . Garrison . | . . . . . . . . . . . Intercept . | . . . . . . . . . . . Searches Triggered 1 | . . . . . . 1 . . . . Construction Impeded 1 | . . . 1 . . . . . . . Haulers Reinforced . | . . . . . . . . . . . Active Scanning Responses . | . . . . . . . . . . . Cargo Convoy Interrupts . | . . . . . . . . . . . Stealth | -11 -10 -9 -8 -7 -7 -6 -5 -4 -3 -3 --------- Run | Scr Mat Mat Mat Fac DSF Fac Fac Fac Res Arm Distress Signals 11 | . 1 7 1 . . . . . 1 1 Communications Jammed . | . . . . . . . . . . . Distress Signals . | . . . . . . . . . . . Times Spotted 186 | . 21 45 12 . 3 27 7 1 11 59 Peak Tracking Total 30 | . 7 6 8 . 4 8 7 1 7 30 Tactical Retreats 23 | . . 8 1 . 1 4 2 . . 7 Traps | -11 -10 -9 -8 -7 -7 -6 -5 -4 -3 -3 ------- Run | Scr Mat Mat Mat Fac DSF Fac Fac Fac Res Arm Traps Triggered 3 | . . . . . . 2 . . 1 . Indirectly . | . . . . . . . . . . . Trap Hack Attempts . | . . . . . . . . . . . Triggered . | . . . . . . . . . . . Disarmed . | . . . . . . . . . . . Reprogrammed 1 | . 1 . . . . . . . . . Reused . | . . . . . . . . . . . Traps Extracted . | . . . . . . . . . . . Installed . | . . . . . . . . . . . Triggered . | . . . . . . . . . . . Machines | -11 -10 -9 -8 -7 -7 -6 -5 -4 -3 -3 ---------- Run | Scr Mat Mat Mat Fac DSF Fac Fac Fac Res Arm Machines Disabled 5 | . 4 . . . . . . . . 1 Max in Single Turn 2 | . 2 . . . . . . . . 1 Garrison Access 2 | . . . . . . 1 1 . . . Energy Cycler 1 | . . . . . . . . . . 1 Machines Sabotaged . | . . . . . . . . . . . Garrisons Compromised . | . . . . . . . . . . . Overloaded Fab Kills . | . . . . . . . . . . . Hacking | -11 -10 -9 -8 -7 -7 -6 -5 -4 -3 -3 --------- Run | Scr Mat Mat Mat Fac DSF Fac Fac Fac Res Arm Machines Accessed 34 | . 5 6 4 1 . 9 2 . 3 4 Terminals 25 | . 4 6 4 1 . 5 1 . 1 3 Fabricators 3 | . . . . . . 1 . . 1 1 Repair Stations . | . . . . . . . . . . . Recycling Units 2 | . 1 . . . . 1 . . . . Scanalyzers 2 | . . . . . . 1 . . 1 . Garrison Access 2 | . . . . . . 1 1 . . . Total Hacks 84 | . 17 13 13 1 . 20 4 . 6 10 Successful 46 | . 13 7 6 1 . 13 3 . 2 1 Failed 38 | . 4 6 7 . . 7 1 . 4 9 Catastrophic 4 | . . 1 . . . 1 . . . 2 Database Lockouts . | . . . . . . . . . . . Manual 48 | . 10 13 12 . . 9 1 . . 3 Terminals 72 | . 16 13 13 1 . 15 3 . 3 8 Fabricators 6 | . . . . . . 2 . . 2 2 Repair Stations . | . . . . . . . . . . . Recycling Units 2 | . 1 . . . . 1 . . . . Scanalyzers 2 | . . . . . . 1 . . 1 . Garrison Access 2 | . . . . . . 1 1 . . . Terminal Hacks 17 | . 6 . 1 1 . 5 1 . 2 1 Record 2 | . . . . . . . . . 2 . Part Schematic 1 | . . . . . . 1 . . . . Robot Analysis 1 | . . . . . . 1 . . . . Open Door 1 | . . . . . . . . . . 1 Open DSF 2 | . . . . 1 . 1 . . . . Scanalyzer Index 1 | . 1 . . . . . . . . . Alert Level 2 | . 1 . . . . 1 . . . . Unreport Threat 1 | . 1 . . . . . . . . . Locate Traps 2 | . 1 . . . . . 1 . . . Reprogram Traps 1 | . 1 . . . . . . . . . Surveillance Status 1 | . 1 . . . . . . . . . Transport Status 1 | . . . 1 . . . . . . . Hauler Manifests 1 | . . . . . . 1 . . . . Fabricator Hacks 2 | . . . . . . 2 . . . . Load Schematic 1 | . . . . . . 1 . . . . Build 1 | . . . . . . 1 . . . . Repair Station Hacks . | . . . . . . . . . . . Recycling Unit Hacks . | . . . . . . . . . . . Scanalyzer . | . . . . . . . . . . . Garrison Access Hacks 2 | . . . . . . 1 1 . . . Seal Access 2 | . . . . . . 1 1 . . . Unauthorized Hacks 25 | . 7 7 5 . . 5 1 . . . Terminals 23 | . 6 7 5 . . 4 1 . . . Track 3 | . . 1 1 . . 1 . . . . Assimilate 3 | . 1 1 1 . . . . . . . Botnet 15 | . 4 5 2 . . 3 1 . . . Detonate 2 | . 1 . 1 . . . . . . . Fabricators . | . . . . . . . . . . . Repair Stations . | . . . . . . . . . . . Recycling Units 2 | . 1 . . . . 1 . . . . Tunnel 2 | . 1 . . . . 1 . . . . Scanalyzers . | . . . . . . . . . . . Garrison Access . | . . . . . . . . . . . Data Cores Recovered . | . . . . . . . . . . . Used . | . . . . . . . . . . . Hacking Detections 24 | . 1 5 3 . . 7 1 . 3 4 Full Trace Events 5 | . . . . . . 3 . . . 2 Feedback Events . | . . . . . . . . . . . Feedback Blocked . | . . . . . . . . . . . Robot Schematics Acquired . | . . . . . . . . . . . Robots Built . | . . . . . . . . . . . Authchips . | . . . . . . . . . . . Time . | . . . . . . . . . . . Total Robot Build Rating . | . . . . . . . . . . . Part Schematics Acquired 1 | . . . . . . 1 . . . . Parts Built 2 | . . . . . . 2 . . . . Authchips . | . . . . . . . . . . . Time 117 | . . . . . . 117 . . . . Total Part Build Rating 14 | . . . . . . 14 . . . . Parts Repaired . | . . . . . . . . . . . Time . | . . . . . . . . . . . Parts Recycled . | . . . . . . . . . . . Recycled Matter . | . . . . . . . . . . . Retrieved Matter . | . . . . . . . . . . . Retrieved Components . | . . . . . . . . . . . Parts Scanalyzed . | . . . . . . . . . . . Part Schematics Acquired . | . . . . . . . . . . . Parts Damaged . | . . . . . . . . . . . Bothacking | -11 -10 -9 -8 -7 -7 -6 -5 -4 -3 -3 ------------ Run | Scr Mat Mat Mat Fac DSF Fac Fac Fac Res Arm Used RIF Installer . | . . . . . . . . . . . Robots Hacked . | . . . . . . . . . . . Non-combat . | . . . . . . . . . . . Combat . | . . . . . . . . . . . Robot Hacks Applied . | . . . . . . . . . . . Relay Couplers Released . | . . . . . . . . . . . Fabnet Peak Effective % . | . . . . . . . . . . . Robots Rewired . | . . . . . . . . . . . Allies Hacked . | . . . . . . . . . . . Hacks Repelled . | . . . . . . . . . . . Allies | -11 -10 -9 -8 -7 -7 -6 -5 -4 -3 -3 -------- Run | Scr Mat Mat Mat Fac DSF Fac Fac Fac Res Arm Total Allies 1 | . 1 . . . . . . . . . Largest Group 1 | . 1 . . . . . . . . . Highest-Rated Group 10 | . 10 . . . . . . . . . Highest-Rated Ally 10 | . 10 . . . . . . . . . Total Orders . | . . . . . . . . . . . Ally Attacks . | . . . . . . . . . . . Total Damage . | . . . . . . . . . . . Kills . | . . . . . . . . . . . Allies Corrupted . | . . . . . . . . . . . Allies Melted . | . . . . . . . . . . . Intel | -11 -10 -9 -8 -7 -7 -6 -5 -4 -3 -3 ------- Run | Scr Mat Mat Mat Fac DSF Fac Fac Fac Res Arm Robot Analysis Total 1 | . . . . . . 1 . . . . Derelict Logs Recovered . | . . . . . . . . . . . Drone Launches . | . . . . . . . . . . . Drone Recoveries . | . . . . . . . . . . . Exploration | -11 -10 -9 -8 -7 -7 -6 -5 -4 -3 -3 ------------- Run | Scr Mat Mat Mat Fac DSF Fac Fac Fac Res Arm Turns Passed 3085 | . 763 929 120 5 119 405 98 53 375 218 Spaces Moved 3596 | 1 459 463 232 13 104 1150 295 131 267 481 Core 57 | . . . . . . . . . . 57 Treads 13 | . . . . . . . . . . 13 Legs 923 | 1 459 463 . . . . . . . . Wheels . | . . . . . . . . . . . Hover . | . . . . . . . . . . . Flight 2603 | . . . 232 13 104 1150 295 131 267 411 Fastest Speed 22 | 120 120 120 29 29 25 27 25 25 22 22 Average Speed 53 | 120 124 133 29 29 28 27 25 25 23 34 Slowest Speed 250 | 120 190 190 29 29 29 28 25 25 25 250 Overloaded Moves . | . . . . . . . . . . . Propulsion Burnouts . | . . . . . . . . . . . Robots Hopped 37 | . . . 12 . . 16 3 . 1 5 Cave-ins Triggered . | . . . . . . . . . . . Exploration Rate (%) 34 | 1 63 60 34 . 75 30 11 3 10 56 Regions Visited 10 Branch Regions 1 Pre-discovered Areas 2 | . 1 . . . . 1 . . . . Known Exits Taken 5 | . 1 1 1 1 . 1 . . . . Unknown Exits Taken 4 | 1 . . . . . . 1 1 1 . Scrap Searched . | . . . . . . . . . . . Spaces Dug 6 | . . . 6 . . . . . . . Terrain Destroyed 118 | . 20 19 15 . . . 26 . 9 29 Melee . | . . . . . . . . . . . Projectile 6 | . . . 6 . . . . . . . AOE 112 | . 20 19 9 . . . 26 . 9 29 Terrain Rammed . | . . . . . . . . . . . Walls Destroyed . | . . . . . . . . . . . Machines Disabled . | . . . . . . . . . . . Actions | -11 -10 -9 -8 -7 -7 -6 -5 -4 -3 -3 --------- Run | Scr Mat Mat Mat Fac DSF Fac Fac Fac Res Arm Total 4496 | . 579 680 251 14 193 1228 311 148 572 520 Wait 629 | . 42 131 4 . 72 57 11 11 293 8 Move 3515 | . 458 462 209 12 103 1118 288 130 264 471 Hop 34 | . . . 10 . . 15 3 . 1 5 Pick Up 49 | . 11 10 4 . 6 11 1 2 . 4 Fast Attach 19 | . 2 1 2 . 2 2 . . 1 9 Attach 22 | . 1 1 2 1 2 2 3 2 4 4 Detach 11 | . . . 1 1 1 1 . . 1 6 Swap 43 | . 7 13 6 . 4 7 2 3 . 1 Drop 46 | . 12 10 5 . 3 13 . . 2 1 Fire 117 | . 43 51 8 . . 2 3 . 6 4 Melee . | . . . . . . . . . . . Ram . | . . . . . . . . . . . Kick 4 | . 3 1 . . . . . . . . Crush 7 | . . . . . . . . . . 7 Escape Stasis . | . . . . . . . . . . . Rewire . | . . . . . . . . . . . Trap . | . . . . . . . . . . . Miscellaneous . | . . . . . . . . . . . Route ------- -11/Scrapyard -10/Materials (discovered 2 exits: *Mat / *Min) -9/Materials (discovered 2 exits: *Mat / *Min) -8/Materials -7/Factory -7/DSF -6/Factory (discovered 2 exits: *Fac / *Low) -5/Factory -4/Factory -3/Research (discovered 2 exits: *Arm / [*Qua]) -3/Armory History --------- Turn | Location | Event 1 | -11/Scrapyard | Discovered new exit (range 0) 1 | -11/Scrapyard | Entered Materials 166 | -10/Materials | Core integrity fell below 50% 288 | -10/Materials | Discovered new exit (range 13) 319 | -10/Materials | Build established: Mutant 373 | -10/Materials | Identified exit to Mines 697 | -10/Materials | Discovered new exit (range 13) 762 | -10/Materials | Identified exit to Materials 764 | -10/Materials | Entered another Materials area 764 | -9/Materials | Evolved 2 slots: Propulsion x1, Utility x1 972 | -9/Materials | Discovered new exit (range 14) 1031 | -9/Materials | Identified exit to Mines 1164 | -9/Materials | Build established: Scavenger-Mutant 1668 | -9/Materials | Discovered new exit (range 16) 1692 | -9/Materials | Identified exit to Materials 1693 | -9/Materials | Entered another Materials area 1693 | -8/Materials | Evolved 2 slots: Propulsion x1, Utility x1 1812 | -8/Materials | Discovered new exit (range 8) 1813 | -8/Materials | Identified exit to Factory 1813 | -8/Materials | Entered Factory 1813 | -7/Factory | Evolved 2 slots: Propulsion x1, Utility x1 1817 | -7/Factory | Identified exit to DSF 1818 | -7/Factory | Entered DSF 1911 | -7/DSF | Additional patrols routed to DSF 1933 | -7/DSF | Discovered new exit (range 15) 1937 | -7/DSF | Identified exit to Factory 1937 | -7/DSF | Entered Factory 1937 | -6/Factory | Evolved 2 slots: Power x1, Utility x1 2179 | -6/Factory | Discovered new exit (range 5) 2180 | -6/Factory | Identified exit to Lower Caves 2224 | -6/Factory | Build established: Hacker-Sprinter 2228 | -6/Factory | Fabricated Lgt. Antimatter Reactor? 2287 | -6/Factory | Search patrols dispatched 2338 | -6/Factory | Discovered new exit (range 14) 2341 | -6/Factory | Identified exit to Factory 2342 | -6/Factory | Entered another Factory area 2342 | -5/Factory | Evolved 2 slots: Propulsion x1, Utility x1 2430 | -5/Factory | Discovered new exit (range 16) 2440 | -5/Factory | Entered another Factory area 2440 | -4/Factory | Evolved 2 slots: Utility x2 2452 | -4/Factory | Discovered new exit (range 6) 2467 | -4/Factory | Spotted B-86 Titan 2493 | -4/Factory | Entered Research 2493 | -3/Research | Evolved 2 slots: Power x1, Propulsion x1 2741 | -3/Research | Build established: Hacker-Scout 2854 | -3/Research | Discovered new exit (range 8) 2862 | -3/Research | Discovered new exit (range 10) 2868 | -3/Research | Entered Armory 2887 | -3/Armory | Found Prototype Slashing Weapon 2887 | -3/Armory | Identified Nanosword 2899 | -3/Armory | Lost 3 parts (1p1n1u) 2956 | -3/Armory | Lost 5 parts (3n2u) 2970 | -3/Armory | Spotted B-86 Titan 3009 | -3/Armory | Core integrity fell below 50% 3032 | -3/Armory | Energy Cycler disabled 3050 | -3/Armory | Core integrity fell below 20% 3067 | -3/Armory | Lost 12 parts (8n3u1w) 3086 | -3/Armory | Destroyed by P-80 Master with Gamma Rifle Last Messages --------------- 03070_ Slammed into P-80 Master. 03071_ Slug penetrates Wall. 03071_ Slug penetrates S-43 Plague. 03072_ Slammed into P-80 Master. 03076_ Slug penetrates S-43 Plague. 03076_ Biometal Heavy Treads destroyed. 03076_ Slammed into P-80 Master. 03078_ P-80 Master resets P-80 Master, system corruption cleaned. 03079_ P-80 Master resets S-43 Plague, system corruption cleaned. 03079_ S-43 Plague destroyed. 03079_ Slammed into P-80 Master. 03082_ Slug penetrates L-61 Swordsman. 03082_ Slug penetrates Wall. 03082_ Slug penetrates P-80 Master. 03083_ C-30 ARC bursts open, deploying its payload. 03083_ H-77 Assassin unfolds itself. 03083_ Biometal Heavy Treads destroyed. 03083_ P-80 Master resets L-61 Swordsman, system corruption cleaned. 03084_ The unstable cave ceiling collapses. 03086_ Enh. Nova Cannon destroyed. Map ----- +----------------------------------------------------+ | | | | | | | ??????????????????????????????????###"""""""""# | | ??????????????????????????????????# | | ??????????????????????????????????# | | ??????????????????????????????????# | | ??????????????????????????????????# | | ??????????????????????????????????# | | ??????????????????????????????????# | | ??????????????????????????????????# | | ??????????????????????????????????# | | ???????????????#####???################# ###//# | | ??????????????? ?? %= | | ??????????????? ?? [ | | ???????????????? ?? ^ | | ???????????????""" ? | | ???????????????""" ???########### ######+# | | ???????????????""" ######## # #??????? | | ???????????????""" # ## # #??????? | | ?????????? ????""" # = + #??????? | | ???????? """ ] h # #??????? | | ???????? """ # g= #" +??????? | | ???????? l hl g gh +%" #??????? | | ???????? # lph% *= ## ###??????? | | ???????????????##### @s gl/ =* ## #????????? | | ???????????????????# p l # ## #????????? | | ???????????????????# # s ## ## #????????? | | ???????????????????# # # # ## ## #????????? | | ???????????????????#?## ## ## #? #????????? | | ??????????????????????##?##########? #????????? | | ???????????????????????????????????? #????????? | | ????????????????????????????????????+?????????? | | ??????????????????????????????????????????????? | | ??????????????????????????????????????????????? | | ??????????????????????????????????????????????? | | ??????????????????????????????????????????????? | | ??????????????????????????????????????????????? | | ??????????????????????????????????????????????? | | ??????????????????????????????????????????????? | | ??????????????????????????????????????????????? | | ??????????????????????????????????????????????? | | ??????????????????????????????????????????????? | | ??????????????????????????????????????????????? | | ??????????????????????????????????????????????? | | ??????????????????????????????????????????????? | | ??????????????????????????????????????????????? | | ??????????????????????????????????????????????? | | ??????????????????????????????????????????????? | | ??????????????????????????????????????????????? | +----------------------------------------------------+ Best States ------------- Heat Dissipation 46 Energy Generation 37 Energy Capacity 340 Matter Stores 300 Matter Capacity 300 Sight Range 16 Robot Scan Range 16 Terrain Scan Range 16 Terrain Scan Density 210 ECM Strength 2 Power Amplification 20 Additional Mass Support 6 Evasion (%) 73 Melee Accuracy 8 Recoil Reduction 4 Offensive Hacking 20 Item Schematics ----------------- Lgt. Antimatter Reactor | -6/Factory | Hacked Robot Schematics ------------------ None Fabricated ------------ Lgt. Antimatter Reactor | x2 | -6/Factory Alien Tech Used ----------------- None Achievements -------------- Brute Force Omniscient Cartographer Challenges ------------ None Game ------ Seed SwarmNavigationInitializer Manual? 0 Play Time 01:06:14 Cumulative 47.9 hours Start 2022.06.29 @ 13:34:25 End 2022.06.29 @ 14:37:04 Sessions 1 Manual Loads 0 Difficulty Rogue Special Mode None Game No. 74 Rogue 74 Adventurer 0 Explorer 0 Win Type - Total 0 Types 0/0/0/0/0/0/0/0/0 Lore% 30 Gallery% 35 Achievement% 30 Wizard Run 0 Options --------- ASCII 0 Keyboard 1 Movement Vi Keybinds 1 Fullscreen 1 Font 24/Smallcaps Map View 76x50 Tactical HUD 1 Map Filters NONE Filters NONE Steam 1 RUN: ef6541aa-795f-4678-84c1-e82f81b0f6d8